fUSD/lending_fUSD_20240407
["ID","MTS","AMOUNT","RATE_DAILY","PERIOD"]
[321719293,1712449841109,-150.0,0.00021738,2]
[321719294,1712449841119,-150.0,0.00021739,2]
[321719295,1712449841128,-150.0,0.00021741,2]
[321719296,1712449841137,-150.0,0.00021741,2]
[321719297,1712449841147,-150.0,0.00021742,2]
[321719298,1712449841156,-150.0,0.00021747,2]
[321719299,1712449841166,-150.0,0.00021751,2]
[321719300,1712449841175,-150.0,0.00021762,2]
[321719301,1712449841184,-150.0,0.00021763,2]
[321719302,1712449841194,-150.0,0.00021764,2]
[321719303,1712449841204,-150.0,0.00021766,2]
[321719304,1712449841213,-150.0,0.00021766,2]
[321719305,1712449841223,-150.0,0.00021767,2]
[321719306,1712449841232,-150.0,0.00021774,2]
[321719307,1712449841242,-150.0,0.00021774,2]
[321719308,1712449841251,-1396.08977005,0.00021779,2]
[321719309,1712449841261,-235.67746,0.0002178,2]
[321719310,1712449841273,-150.0,0.00021781,2]
[321719311,1712449841282,-200.0,0.00021781,2]
[321719312,1712449841291,-150.0,0.00021787,2]
[321719313,1712449841305,-150.0,0.00021792,2]
[321719314,1712449841314,-150.0,0.00021793,2]
[321719315,1712449841323,-155.0,0.00021797,2]
[321719316,1712449841333,-150.0,0.00021797,2]
[321719317,1712449841342,-150.0,0.00021797,2]
[321719318,1712449841352,-5996.20029983,0.00021798,2]
[321719319,1712449841362,-2184.1404,0.00021798,2]
[321719320,1712449841371,-7394.1374,0.00021799,2]
[321719321,1712449841381,-40256.9351,0.00021799,2]
[321719322,1712449841390,-3458.869,0.00021799,2]
[321719323,1712449841399,-1000.0,0.00021799,2]
[321719324,1712449841409,-150.0,0.00021799,2]
[321719325,1712449841418,-1463.84854411,0.000218,2]
[321719326,1712449841428,-304.54086266,0.000218,2]
[321719327,1712449841437,-338.55015306,0.00021803,2]
[321719328,1712449841448,-150.0,0.0002181,2]
[321719329,1712449841460,-150.0,0.00021811,2]
[321719330,1712449841470,-150.0,0.00021814,2]
[321719331,1712449841479,-150.0,0.00021816,2]
[321719332,1712449841489,-500.0,0.00021817,2]
[321719333,1712449841498,-1393.3336,0.00021817,2]
[321719334,1712449841508,-150.0,0.00021817,2]
[321719335,1712449841517,-153.50463917,0.00021817,2]
[321719336,1712449841526,-5347.52173272,0.00021817,2]
[321719337,1712449841536,-162.58220772,0.00021817,2]
[321719338,1712449841545,-150.0,0.00021819,2]
[321719339,1712449841557,-150.0,0.0002182,2]
[321719340,1712449841567,-150.0,0.00021824,2]
[321719341,1712449841576,-150.0,0.00021828,2]
[321719342,1712449841586,-150.0,0.00021829,2]
[321719343,1712449841595,-150.0,0.00021831,2]
[321719344,1712449841605,-150.0,0.00021833,2]
[321719345,1712449841614,-1500.0,0.00021834,2]
[321719346,1712449841623,-150.0,0.00021842,2]
[321719347,1712449841632,-150.0,0.00021842,2]
[321719348,1712449841642,-150.0,0.00021844,2]
[321719349,1712449841653,-150.0,0.00021845,2]
[321719350,1712449841663,-150.0,0.00021847,2]
[321719351,1712449841672,-150.0,0.00021847,2]
[321719352,1712449841681,-150.0,0.00021847,2]
[321719353,1712449841690,-150.0,0.00021854,2]
[321719354,1712449841700,-150.0,0.00021854,2]
[321719355,1712449841709,-150.0,0.00021855,2]
[321719356,1712449841718,-150.0,0.00021857,2]
[321719357,1712449841727,-221.06395874,0.00021858,2]
[321719358,1712449841736,-150.0,0.00021861,2]
[321719359,1712449841746,-150.0,0.00021861,2]
[321719360,1712449841755,-150.0,0.00021862,2]
[321719361,1712449841765,-150.0,0.00021862,2]
[321719362,1712449841775,-150.0,0.00021864,2]
[321719363,1712449841784,-150.0,0.00021867,2]
[321719364,1712449841794,-1500.0,0.00021871,2]
[321719365,1712449841806,-150.0,0.00021872,2]
[321719366,1712449841815,-150.0,0.00021874,2]
[321719367,1712449841824,-150.0,0.00021875,2]
[321719368,1712449841834,-1500.0,0.00021877,2]
[321719369,1712449841843,-1617.04016373,0.00021878,2]
[321719370,1712449841852,-150.0,0.0002188,2]
[321719371,1712449841862,-150.0,0.00021881,2]
[321719372,1712449841871,-150.0,0.00021886,2]
[321719373,1712449841880,-150.0,0.00021894,2]
[321719374,1712449841889,-150.0,0.00021894,2]
[321719375,1712449841899,-150.0,0.00021896,2]
[321719376,1712449841910,-150.0,0.00021898,2]
[321719377,1712449841920,-6545.1193,0.00021898,2]
[321719378,1712449841929,-12390.4321,0.00021898,2]
[321719379,1712449841939,-16825.269906,0.00021899,2]
[321719381,1712449842784,-150.0,0.00021739,2]
[321719382,1712449842794,-150.0,0.00021749,2]
[321719383,1712449842805,-150.0,0.00021751,2]
[321719384,1712449842814,-53.44499998,0.00021755,2]
[321719385,1712449842842,-96.55500002,0.00021755,2]
[321719386,1712449842851,-150.0,0.00021758,2]
[321719387,1712449842861,-150.0,0.00021763,2]
[321719388,1712449842870,-150.0,0.00021763,2]
[321719389,1712449842880,-150.0,0.00021775,2]
[321719390,1712449842890,-150.0,0.00021785,2]
[321719391,1712449842899,-150.0,0.0002179,2]
[321719392,1712449842908,-150.0,0.00021793,2]
[321719393,1712449842917,-100.4874316,0.00021794,2]
[321719394,1712449842930,-49.5125684,0.00021794,2]
[321719395,1712449842938,-150.0,0.00021795,2]
[321719396,1712449842948,-150.0,0.00021798,2]
[321719397,1712449842957,-150.0,0.00021812,2]
[321719398,1712449842966,-150.0,0.00021814,2]
[321719399,1712449842976,-150.0,0.00021815,2]
[321719400,1712449842985,-150.0,0.00021816,2]
[321719401,1712449842995,-150.0,0.00021819,2]
[321719402,1712449843004,-150.0,0.00021825,2]
[321719403,1712449843013,-150.0,0.00021825,2]
[321719404,1712449843023,-150.0,0.00021827,2]
[321719405,1712449843032,-150.0,0.00021829,2]
[321719406,1712449843041,-150.0,0.00021832,2]
[321719407,1712449843050,-150.0,0.00021837,2]
[321719408,1712449843059,-150.0,0.00021851,2]
[321719409,1712449843068,-150.0,0.00021866,2]
[321719410,1712449843081,-150.0,0.00021867,2]
[321719411,1712449843090,-150.0,0.00021869,2]
[321719412,1712449843100,-150.0,0.00021875,2]
[321719413,1712449843109,-150.0,0.00021877,2]
[321719414,1712449843118,-150.0,0.00021877,2]
[321719415,1712449843127,-150.0,0.00021879,2]
[321719416,1712449843137,-150.0,0.00021883,2]
[321719417,1712449843146,-150.0,0.00021888,2]
[321719418,1712449843155,-150.0,0.00021888,2]
[321719419,1712449843164,-150.0,0.00021891,2]
[321719420,1712449843173,-2655.01228978,0.00021899,2]
[321719421,1712449843185,-378.38195341,0.00021899,2]
[321719422,1712449843366,-150.0,0.00021726,2]
[321719423,1712449843376,-150.0,0.00021726,2]
[321719424,1712449843385,-150.0,0.00021754,2]
[321719425,1712449843394,-150.0,0.00021795,2]
[321719426,1712449843404,-150.0,0.00021798,2]
[321719427,1712449843413,-150.0,0.00021848,2]
[321719428,1712449843422,-150.0,0.00021881,2]
[321719429,1712449843431,-150.0,0.00021898,2]
[321719430,1712449843441,-12602.76000001,0.00021899,2]
[321719514,1712449862018,200.0,0.000215,7]
[321719515,1712449862483,747.88022358,0.00019707,2]
[321719516,1712449864121,500.0,0.000216,7]
[321719517,1712449866276,800.0,0.000217,7]
[321719518,1712449868947,1000.0,0.000218,7]
[321719519,1712449871052,1300.0,0.000219,7]
[321719520,1712449904763,664.88,0.00018965,2]
[321719521,1712449929246,380.37,0.00020405,2]
[321719522,1712450022943,518.02057889,0.000205,2]
[321719523,1712450024154,425.96535527,0.000205,2]
[321719524,1712450025440,518.02057889,0.000205,2]
[321719525,1712450029949,518.02057889,0.000205,2]
[321719526,1712450035129,500.0,0.00020499,2]
[321719528,1712450038153,427.59664888,0.00020495,2]
[321719529,1712450056649,6206.19967181,0.00020499,2]
[321719530,1712450076622,3900.07083851,0.00020497,2]
[321719531,1712450114684,5500.0,0.00020499,2]
[321719532,1712450141347,6206.19967181,0.00020499,2]
[321719533,1712450162587,150.0,0.00020499,2]
[321719534,1712450215684,6206.19967181,0.00020499,2]
[321719535,1712450240933,1238.7212054,0.00020499,2]
[321719536,1712450362346,631.63,0.00018883,2]
[321719540,1712450663871,-283.44,0.00022769,15]
[321719541,1712450663899,-150.5,0.00022779,15]
[321719542,1712450663922,-155.53,0.00022779,15]
[321719543,1712450663946,-150.5,0.00022789,15]
[321719544,1712450663970,-150.5,0.00022789,15]
[321719545,1712450663993,-150.5,0.00022789,15]
[321719546,1712450679596,-200.0,0.000229,8]
[321719547,1712450694501,-400.0,0.00023,5]
[321719548,1712450703329,150.5,0.00021983,15]
[321719549,1712450703776,155.53,0.00021973,15]
[321719550,1712450766066,1390.46198677,0.00020506,5]
[321719551,1712450772561,150.0,0.00021997,10]
[321719552,1712450772728,161.92350666,0.00021998,10]
[321719553,1712450850604,600.04,0.00018801,2]
[321719554,1712450872912,799.84351543,0.000219,5]
[321719555,1712450877904,799.84351543,0.00022643,6]
[321719556,1712450879889,769.190628,0.00020397,2]
[321719559,1712450924423,180755.312229,0.000205,2]
[321719560,1712450952366,22340.23328842,0.00020499,2]
[321719562,1712451013386,479.90610929,0.000219,5]
[321719563,1712451018182,479.90610925,0.00022643,6]
[321719564,1712451020931,4666.67592701,0.00020401,2]
[321719566,1712451032079,-424.46,0.000205,2]
[321719569,1712451038051,-4146.07799336,0.000205,2]
[321719570,1712451038061,-150.0,0.00020501,2]
[321719571,1712451038072,-150.0,0.00020501,2]
[321719572,1712451038082,-10674.3147462,0.00020502,2]
[321719573,1712451038091,-1238.05701244,0.00020505,2]
[321719574,1712451038102,-500.0,0.00020506,2]
[321719575,1712451038112,-2840.35334634,0.00020506,2]
[321719576,1712451038121,-790.08,0.00020575,2]
[321719577,1712451038129,-4377.18919699,0.00020602,2]
[321719578,1712451038139,-183.75,0.00020705,2]
[321719579,1712451038148,-209.92,0.00020738,2]
[321719580,1712451038158,-562.04,0.00020794,2]
[321719581,1712451038169,-3155.84658012,0.00020802,2]
[321719582,1712451038179,-15584.46,0.00020951,2]
[321719583,1712451038189,-10674.31474614,0.00020991,2]
[321719584,1712451038198,-600.04,0.00021065,2]
[321719585,1712451038208,-4377.18919693,0.0002108,2]
[321719586,1712451038219,-167.0,0.00021381,2]
[321719587,1712451038229,-8907.26284163,0.00021479,2]
[321719588,1712451038280,-1320.37958539,0.00021479,2]
[321719603,1712451040365,-446.67231912,0.00021479,2]
[321719604,1712451040374,-391.34435236,0.00021557,2]
[321719607,1712451042922,-3985.84484457,0.00021557,2]
[321719608,1712451042932,-173.060925,0.00021644,2]
[321719609,1712451042941,-345.36835,0.0002168,2]
[321719610,1712451042951,-7268.16438154,0.00021689,2]
[321719611,1712451042960,-150.0,0.00021726,2]
[321719612,1712451042969,-150.0,0.00021728,2]
[321719613,1712451042978,-150.0,0.00021735,2]
[321719614,1712451042988,-150.0,0.00021736,2]
[321719615,1712451042998,-150.0,0.00021746,2]
[321719616,1712451043007,-150.0,0.00021758,2]
[321719617,1712451043016,-150.0,0.00021765,2]
[321719618,1712451043025,-150.0,0.00021765,2]
[321719619,1712451043035,-150.0,0.00021765,2]
[321719621,1712451043044,-150.0,0.00021773,2]
[321719622,1712451043053,-649.39871893,0.00021797,2]
[321719623,1712451043149,-591.53045149,0.00021797,2]
[321719624,1712451043158,-1210.58734192,0.00021797,2]
[321719625,1712451043168,-2029.57,0.000218,2]
[321719626,1712451043177,-707.48179673,0.000218,2]
[321719636,1712451046127,-1420.94820327,0.000218,2]
[321719637,1712451046137,-1502.80174673,0.000218,2]
[321719638,1712451046149,-497.19825327,0.000218,2]
[321719639,1712451046157,-2000.0,0.000218,2]
[321719640,1712451046167,-4220.80174667,0.000218,2]
[321719641,1712451072186,6177.43446613,0.000154,2]
[321719642,1712451081543,533.53630174,9e-05,2]
[321719643,1712451082231,298.86095717,0.00021889,5]
[321719644,1712451082257,757.20186905,0.00021889,5]
[321719645,1712451087105,437.15461961,0.00018,2]
[321719646,1712451099504,3697.08093297,0.00011,2]
[321719647,1712451113710,162.47,0.00020897,10]
[321719648,1712451117874,4878.91569496,6.94e-05,2]
[321719650,1712451153649,287.94366555,0.000219,5]
[321719651,1712451154388,287.28645962,6.94e-05,2]
[321719652,1712451157880,250.34966278,0.0002,2]
[321719653,1712451169653,282.8206,0.000204,2]
[321719654,1712451229309,500.0,0.0002,2]
[321719655,1712451271780,2179.6711081,0.00015,2]
[321719658,1712451298818,230.35493244,0.000219,5]
[321719664,1712451444181,184.28394596,0.00021899,5]
[321719665,1712451445112,568.48,0.00018685,2]
[321719666,1712451501958,367.93,0.00020465,2]
[321719667,1712451530265,374.02,0.00020465,2]
[321719669,1712451648007,173.03,0.00016338,2]
[321719670,1712451654759,186.53,0.00016261,2]
[321719691,1712451761916,1742.69,0.0002027,2]
[321719693,1712451804049,4761.13872767,0.0003,30]
[321719694,1712451817642,162.05334946,0.00020415,2]
[321719695,1712451824307,-150.0,0.00020514,2]
[321719696,1712451824329,-150.0,0.00020514,2]
[321719697,1712451824350,-6206.19967181,0.00020514,2]
[321719698,1712451824372,-518.02057889,0.00020515,2]
[321719699,1712451824392,-518.02057889,0.00020515,2]
[321719700,1712451824415,-518.02057889,0.00020515,2]
[321719701,1712451824436,-518.02057889,0.00020515,2]
[321719702,1712451824458,-518.02057889,0.00020515,2]
[321719703,1712451824478,-518.02057889,0.00020515,2]
[321719704,1712451824499,-518.02057889,0.00020515,2]
[321719705,1712451824521,-518.02057889,0.00020515,2]
[321719706,1712451824552,-518.02057889,0.00020515,2]
[321719707,1712451824584,-827.34204181,0.00020515,2]
[321719708,1712451824613,-883.68141318,0.00020516,2]
[321719709,1712451824643,-350.0,0.00020516,2]
[321719710,1712451824674,-263.12,0.00020518,2]
[321719711,1712451824703,-2431.5363,0.00020571,2]
[321719712,1712451824736,-2923.93536319,0.0002077,2]
[321719714,1712452098143,686.63,0.00018606,2]
[321719715,1712452105211,173.03,0.00016419,2]
[321719716,1712452111437,500.0,0.0002048,2]
[321719717,1712452183297,249.01,0.00020446,2]
[321719718,1712452186490,340.94,0.00020446,2]
[321719721,1712452232286,-155.754833,0.00020548,2]
[321719722,1712452232296,-351.8661,0.00020576,2]
[321719723,1712452232305,-200.0,0.00020635,2]
[321719724,1712452232315,-150.0,0.00020668,2]
[321719725,1712452232324,-2321.17707556,0.00020668,2]
[321719726,1712452232336,-3863.61202719,0.00020668,2]
[321719727,1712452232370,-21.41056906,0.00020668,2]
[321719728,1712452232379,-266.51224869,0.00020669,2]
[321719729,1712452232404,-433.66532984,0.00020669,2]
[321719730,1712452232416,-1299.4208445,0.00020669,2]
[321719731,1712452232519,-250.0,0.00020669,2]
[321719737,1712452238165,-250.0,0.00020549,2]
[321719738,1712452238177,-1843.71547697,0.00020669,2]
[321719739,1712452238186,-705.65,0.00020676,2]
[321719740,1712452238197,-464.42705332,0.00020768,2]
[321719741,1712452238207,-1212.11420229,0.0002077,2]
[321719742,1712452238274,-14414.47584486,0.0002077,2]
[321719743,1712452238288,-4798.13231982,0.0002077,2]
[321719744,1712452238301,-3511.37901684,0.0002077,2]
[321719745,1712452238314,-21813.34054927,0.0002077,2]
[321719746,1712452238327,-3001.29474425,0.0002077,2]
[321719747,1712452238339,-3847.35178955,0.0002077,2]
[321719748,1712452238374,-268.74445265,0.0002077,2]
[321719770,1712452238721,-24065.62192373,0.0002077,2]
[321719772,1712452240355,-406.24944498,0.0002077,2]
[321719773,1712452240414,-36012.59212499,0.0002077,2]
[321719774,1712452240423,-3064.03243786,0.00020774,2]
[321719775,1712452240432,-999.99,0.00020822,2]
[321719776,1712452240442,-686.63,0.0002087,2]
[321719777,1712452240451,-6789.12,0.00020874,2]
[321719778,1712452240460,-150.99,0.00020874,2]
[321719779,1712452240468,-7472.02032237,0.000209,2]
[321719780,1712452240478,-164.02,0.0002099,2]
[321719781,1712452240487,-155.0,0.00020998,2]
[321719782,1712452240496,-620.18279938,0.00020998,2]
[321719783,1712452240505,-1450.0,0.00021,3]
[321719784,1712452240514,-1407.85292719,0.00021,2]
[321719785,1712452240523,-52105.31543293,0.00021,2]
[321719786,1712452240903,-625.92000007,0.00021,2]
[321719788,1712452243332,-976.920342,0.00021,2]
[321719789,1712452243346,-863.04239845,0.00021,2]
[321719790,1712452243360,-1454.14326039,0.00021,2]
[321719791,1712452243375,-1783.6792561,0.00021,2]
[321719792,1712452243387,-263.96908994,0.00021,2]
[321719793,1712452243399,-2790.0,0.00021,2]
[321719794,1712452243412,-338.67975,0.00021,2]
[321719795,1712452243430,-547.46957672,0.00021,2]
[321719796,1712452243589,-0.52345794,0.00021,2]
[321719797,1712452243609,-2706.66538288,0.00021,2]
[321719815,1712452246274,-500.0,0.00020676,2]
[321719816,1712452246289,-348.91177276,0.00020999,2]
[321719817,1712452246301,-26408.36947724,0.00021,2]
[321719818,1712452345178,151.0,0.00029837,120]
[321719819,1712452461384,435.48,0.00020489,2]
[321719820,1712452577254,197.34,0.00020357,2]
[321719824,1712452686268,500.0,0.00020314,2]
[321719825,1712452698933,695.4,0.00020291,2]
[321719826,1712452736303,3247.63,0.00020356,2]
[321719827,1712452787000,16574.72,0.00020374,2]
[321719828,1712452801165,13140.52,0.00020363,2]
[321719829,1712452822879,23900.0,0.00020291,2]
[321719830,1712452824592,617.96,0.00018327,2]
[321719831,1712452904910,200.0,0.00020212,2]
[321719834,1712452924729,651.61,0.0002025,2]
[321719835,1712453059350,518.02057889,0.000205,2]
[321719836,1712453059381,442.96237305,0.000205,2]
[321719837,1712453061843,518.02057889,0.000205,2]
[321719838,1712453066339,518.02057889,0.000205,2]
[321719839,1712453077243,4310.90021658,0.000205,2]
[321719840,1712453125154,197.34,0.00020177,2]
[321719841,1712453244344,463.26,0.00020207,2]
[321719842,1712453295774,16940.66,0.00020255,2]
[321719846,1712453433501,-206.18856688,0.00020511,2]
[321719847,1712453433510,-356.28439298,0.00020558,2]
[321719848,1712453433668,-5851.27158428,0.00020558,2]
[321719849,1712453433677,-150.0,0.00020559,2]
[321719850,1712453433687,-5862.76370589,0.00020559,2]
[321719851,1712453433697,-21198.50580519,0.0002056,2]
[321719852,1712453433709,-381.87327476,0.0002056,2]
[321719853,1712453433753,-9951.23171679,0.0002056,2]
[321719854,1712453433797,-19702.01593116,0.0002056,2]
[321719855,1712453433810,-399.61925187,0.0002056,2]
[321719876,1712453438543,-18787.00559298,0.0002056,2]
[321719877,1712453438553,-510.0,0.00020561,2]
[321719878,1712453438564,-1249.0,0.00020561,2]
[321719879,1712453438573,-513.99440702,0.00020561,2]
[321719880,1712453438591,-3248.73284259,0.00020561,2]
[321719881,1712453438628,-364.0,0.00020561,2]
[321719882,1712453438698,-923.44978513,0.00020561,2]
[321719883,1712453438708,-2354.36,0.00020589,2]
[321719884,1712453438717,-313.13,0.00020591,2]
[321719885,1712453438726,-499.99,0.00020591,2]
[321719886,1712453438735,-617.96,0.00020591,2]
[321719887,1712453438745,-154.45,0.00020649,2]
[321719889,1712453438755,-154.45,0.00020726,2]
[321719891,1712453438764,-25.73341765,0.00020741,2]
[321719930,1712453440734,-664.16658235,0.00020741,2]
[321719931,1712453440744,-287.80697,0.000208,2]
[321719932,1712453440754,-154.45,0.00020803,2]
[321719933,1712453440763,-287.80696,0.0002084,2]
[321719934,1712453440772,-604.0,0.00020877,2]
[321719935,1712453440968,-154.45,0.0002088,2]
[321719936,1712453440978,-287.80697,0.0002088,2]
[321719937,1712453440988,-154.45,0.00020956,2]
[321719938,1712453440998,-5848.23532647,0.00021,2]
[321719939,1712453441010,-8947.21879473,0.00021,2]
[321719940,1712453441024,-8943.78386462,0.00021,2]
[321719941,1712453441036,-1999.8138714,0.00021,2]
[321719942,1712453441047,-1450.0,0.00021,3]
[321719943,1712453441056,-150.0,0.00021,2]
[321719944,1712453441066,-379.74,0.00021,2]
[321719945,1712453441075,-519.8,0.00021,2]
[321719946,1712453441085,-153.99,0.00021,2]
[321719947,1712453441094,-246.36,0.00021,2]
[321719948,1712453441104,-150.0,0.00021,2]
[321719949,1712453441113,-417.37,0.00021,2]
[321719950,1712453441122,-162.07,0.00021,2]
[321719951,1712453441132,-167.79,0.00021,2]
[321719952,1712453441141,-298.13,0.00021,2]
[321719953,1712453441150,-905.64,0.00021,2]
[321719954,1712453441160,-411.06,0.00021,2]
[321719955,1712453441169,-297.57,0.00021,2]
[321719956,1712453441180,-162.07,0.00021,2]
[321719957,1712453441189,-150.0,0.00021,2]
[321719958,1712453441198,-150.0,0.00021,2]
[321719959,1712453441208,-150.0,0.00021,2]
[321719960,1712453441217,-150.0,0.00021,2]
[321719961,1712453441226,-519.8,0.00021,2]
[321719962,1712453441235,-86.34479012,0.00021,2]
[321719963,1712453441248,-331.02520988,0.00021,2]
[321719964,1712453441258,-411.06,0.00021,2]
[321719965,1712453441268,-348.87,0.00021,2]
[321719966,1712453441277,-150.0,0.00021,2]
[321719967,1712453441286,-905.64,0.00021,2]
[321719968,1712453441295,-150.0,0.00021,2]
[321719969,1712453441305,-519.8,0.00021,2]
[321719970,1712453441314,-417.37,0.00021,2]
[321719971,1712453441331,-150.0,0.00021,2]
[321719972,1712453441340,-150.0,0.00021,2]
[321719973,1712453441349,-150.0,0.00021,2]
[321719974,1712453441358,-150.0,0.00021,2]
[321719975,1712453441369,-905.64,0.00021,2]
[321719976,1712453441379,-411.06,0.00021,2]
[321719977,1712453441389,-348.87,0.00021,2]
[321719978,1712453441400,-150.0,0.00021,2]
[321719979,1712453441409,-150.0,0.00021,2]
[321719980,1712453441418,-162.07,0.00021,2]
[321719981,1712453441430,-150.0,0.00021,2]
[321719982,1712453441440,-287.80696,0.00021,2]
[321719983,1712453441449,-287.80696,0.00021,2]
[321719984,1712453441458,-287.80697,0.00021,2]
[321719985,1712453441468,-150.0,0.00021,2]
[321719986,1712453441478,-519.8,0.00021,2]
[321719987,1712453441488,-417.37,0.00021,2]
[321719988,1712453441499,-150.0,0.00021,2]
[321719989,1712453441509,-150.0,0.00021,2]
[321719990,1712453441519,-150.0,0.00021,2]
[321719991,1712453441530,-431.84413501,0.00021,2]
[321719992,1712453441884,-473.79586499,0.00021,2]
[321719993,1712453441894,-150.0,0.00021,2]
[321719994,1712453441903,-157.04358354,0.00021,2]
[321719995,1712453441916,-51.46641646,0.00021,2]
[321719996,1712453441929,-150.0,0.00021,2]
[321719997,1712453441938,-137.4539019,0.00021,2]
[321719998,1712453441950,-24.6160981,0.00021,2]
[321719999,1712453441959,-348.87,0.00021,2]
[321720000,1712453441968,-150.0,0.00021,2]
[321720001,1712453441977,-519.8,0.00021,2]
[321720002,1712453441985,-150.0,0.00021,2]
[321720003,1712453441995,-417.37,0.00021,2]
[321720004,1712453442005,-87.59210992,0.00021,2]
[321720005,1712453442017,-62.40789008,0.00021,2]
[321720006,1712453442026,-150.0,0.00021,2]
[321720007,1712453442036,-173.96628282,0.00021,2]
[321720008,1712453442050,-731.67371718,0.00021,2]
[321720009,1712453442059,-150.0,0.00021,2]
[321720010,1712453442070,-128.70448974,0.00021,2]
[321720011,1712453442081,-21.29551026,0.00021,2]
[321720012,1712453442094,-162.07,0.00021,2]
[321720013,1712453442103,-348.87,0.00021,2]
[321720014,1712453442114,-150.0,0.00021,2]
[321720015,1712453442123,-150.0,0.00021,2]
[321720016,1712453442133,-519.8,0.00021,2]
[321720017,1712453442142,-417.37,0.00021,2]
[321720018,1712453442151,-150.0,0.00021,2]
[321720019,1712453442160,-150.0,0.00021,2]
[321720020,1712453442170,-150.0,0.00021,2]
[321720021,1712453442182,-905.64,0.00021,2]
[321720022,1712453442191,-348.87,0.00021,2]
[321720023,1712453442200,-162.07,0.00021,2]
[321720024,1712453442210,-150.49,0.00021,2]
[321720025,1712453442220,-536.52,0.00021,2]
[321720026,1712453442229,-431.1,0.00021,2]
[321720027,1712453442238,-153.63,0.00021,2]
[321720028,1712453442248,-154.73,0.00021,2]
[321720029,1712453442257,-151.7,0.00021,2]
[321720030,1712453442267,-360.59,0.00021,2]
[321720031,1712453442276,-152.16,0.00021,2]
[321720032,1712453442285,-311.51784393,0.00021,2]
[321720043,1712453443434,-625.17215607,0.00021,2]
[321720044,1712453443451,-167.12,0.00021,2]
[321720045,1712453443464,-354.76269764,0.00021,2]
[321720046,1712453443478,-165.03730236,0.00021,2]
[321720047,1712453443492,-154.45,0.00021033,2]
[321720048,1712453443505,-154.45,0.0002111,2]
[321720049,1712453443520,-1421.79774816,0.00021186,2]
[321720050,1712453443534,-154.45,0.00021187,2]
[321720051,1712453443548,-154.45,0.00021264,2]
[321720052,1712453443561,-154.45,0.00021341,2]
[321720053,1712453443571,-154.45,0.00021417,2]
[321720054,1712453443582,-154.45,0.00021494,2]
[321720055,1712453443594,-1014.0,0.000215,2]
[321720056,1712453443607,-1000.0,0.000215,2]
[321720057,1712453443619,-154.45,0.00021571,2]
[321720058,1712453443631,-510.0,0.00021589,2]
[321720059,1712453443642,-1249.0,0.00021589,2]
[321720060,1712453443653,-205.27,0.00021591,2]
[321720061,1712453443666,-1000.0,0.00021599,2]
[321720062,1712453443683,-525.0479,0.00021599,2]
[321720063,1712453443695,-4055.03898489,0.00021599,2]
[321720064,1712453443707,-8104.90738429,0.000216,2]
[321720065,1712453443720,-1000.0,0.000216,2]
[321720066,1712453443731,-1000.0,0.000216,2]
[321720067,1712453443743,-154.45,0.00021648,2]
[321720068,1712453443755,-1384.80392997,0.00021678,2]